bitfinex/quotes_ETHUSD_20250422
["timestamp","ask_amount","ask_price","bid_price","bid_amount"]
[1745363347058,6.636,1751.2,1750.4,6.472796]
[1745363347261,0.7645,1751.1,1750.4,6.472796]
[1745363347467,0.7645,1751.1,1750.5,3.0]
[1745363348060,0.7645,1751.1,1750.6,0.05710508]
[1745363349509,0.7645,1751.1,1750.5,3.0]
[1745363350189,0.7645,1751.1,1750.6,0.05710487]
[1745363351189,0.7645,1751.1,1750.5,0.05710316]
[1745363352182,0.7645,1751.1,1750.3,3.28178713]
[1745363352699,6.638,1751.0,1750.4,3.05710444]
[1745363353708,6.638,1751.0,1750.3,3.28178713]
[1745363354113,6.638,1751.0,1750.3,0.28178713]
[1745363354409,0.7928,1750.9,1750.4,0.05711085]
[1745363354709,0.7928,1750.9,1750.5,0.31690502]
[1745363355084,0.85287179,1750.9,1750.5,0.31690502]
[1745363355475,0.7928,1750.9,1750.5,0.31690502]
[1745363355677,0.7928,1751.6,1750.6,0.05711694]
[1745363355872,0.7928,1751.6,1750.9,3.0]
[1745363356072,0.7928,1751.6,1750.6,3.0]
[1745363356321,6.639,1751.5,1750.6,5.28488378]
[1745363356791,6.639,1751.5,1750.7,0.5723]
[1745363358020,6.639,1751.5,1750.8,0.05709334]
[1745363358318,6.639,1751.5,1750.9,3.0]
[1745363358611,6.639,1751.5,1751.0,0.05709335]
[1745363359416,6.639,1751.4,1750.9,3.0]
[1745363359606,6.639,1751.4,1751.0,0.05709549]
[1745363360913,6.639,1751.3,1751.0,0.05709549]
[1745363361482,11.47278154,1751.3,1751.1,3.0]
[1745363361778,11.47278154,1751.3,1751.2,0.05709554]
[1745363361980,11.47278154,1751.3,1751.1,3.0]
[1745363362617,0.7928,1751.2,1750.9,0.41824915]
[1745363362918,0.7928,1751.2,1751.0,0.05710143]
[1745363363080,0.7928,1751.2,1750.7,3.0]
[1745363363635,6.639,1751.1,1750.9,3.0]
[1745363363937,6.639,1751.1,1751.0,0.05709883]
[1745363364085,3.78814532,1751.1,1751.0,0.05709883]
[1745363364517,2.67384532,1751.1,1751.0,0.05709883]
[1745363364729,2.67384532,1751.1,1751.0,3.0]
[1745363365292,1.73944532,1751.1,1751.0,3.0570966]
[1745363365608,1.73944532,1751.1,1751.0,3.0]
[1745363365822,23.65178154,1751.3,1751.1,3.0]
[1745363366055,23.65178154,1751.3,1751.2,0.05709337]
[1745363367223,0.7928,1751.7,1751.2,15.44872137]
[1745363367418,6.639,1751.8,1751.3,9.3676]
[1745363367618,19.6108,1752.0,1751.3,9.3676]
[1745363367920,6.639,1751.9,1751.4,0.05707372]
[1745363368125,6.639,1751.9,1751.5,0.31809744]
[1745363368588,0.7928,1751.8,1751.5,0.31809744]
[1745363368937,0.7928,1751.8,1751.3,9.47601197]
[1745363368938,0.7928,1751.8,1751.6,0.31809744]
[1745363369286,0.7928,1751.8,1751.7,0.31809744]
[1745363369917,0.7928,1751.8,1751.2,0.31809744]
[1745363370829,0.7928,1751.8,1751.3,0.31809744]
[1745363371123,1.54198718,1751.8,1751.3,0.31809744]
[1745363371295,1.54198718,1751.8,1751.4,0.05708677]
[1745363371497,0.7928,1751.8,1751.3,0.31809744]
[1745363371715,0.7928,1751.8,1751.1,3.0]
[1745363371716,0.7928,1751.8,1751.5,0.31849736]
[1745363372363,0.7928,1751.8,1751.6,0.31849736]
[1745363373192,0.7928,1751.8,1751.7,0.31849736]
[1745363374693,7.4598,1751.8,1751.7,0.31849736]
[1745363375018,7.4598,1751.8,1751.6,0.31849736]
[1745363375688,7.4598,1751.8,1751.7,0.31849736]
[1745363376294,7.4598,1751.8,1751.3,0.31849736]
[1745363377128,7.4598,1751.8,1751.4,0.31849736]
[1745363377701,7.4598,1751.8,1751.5,0.31849736]
[1745363378332,6.667,1751.7,1751.5,0.31849736]
[1745363378721,6.667,1751.7,1751.6,0.31849736]
[1745363379110,6.167,1751.7,1751.6,0.31849736]
[1745363381307,7.71585179,1751.7,1751.6,0.31849736]
[1745363381507,0.7928,1751.5,1751.0,0.43554731]
[1745363381740,0.7569,1751.3,1750.5,0.6361]
[1745363381941,6.667,1751.2,1750.6,6.05]
[1745363382113,6.667,1751.2,1750.7,3.0]
[1745363382305,6.667,1751.2,1750.5,0.6361]
[1745363382506,6.667,1751.2,1750.3,6.05]
[1745363382507,0.7569,1751.1,1750.3,6.05]
[1745363382718,0.7569,1751.1,1750.2,0.92639836]
[1745363382719,19.63397179,1751.1,1750.2,0.92639836]
[1745363383044,19.5739,1751.1,1750.2,1.35061926]
[1745363383408,19.5739,1751.1,1750.3,0.05711103]
[1745363383816,19.5739,1751.1,1750.2,6.63695093]
[1745363384020,19.5739,1751.1,1750.2,4.92291926]
[1745363384555,19.5739,1751.1,1750.2,6.63700506]
[1745363385050,19.5739,1751.1,1750.3,0.05710681]
[1745363385350,19.5739,1751.1,1750.4,3.5723]
[1745363385515,19.5739,1751.1,1750.4,0.5723]
[1745363385845,0.7569,1752.2,1751.3,3.6361]
[1745363386048,0.7569,1752.2,1751.4,2.0436688]
[1745363386345,1.49929,1752.2,1751.3,0.6361]
[1745363387022,1.55936179,1752.2,1751.3,0.6361]
[1745363388759,0.7569,1752.2,1751.4,0.0570754]
[1745363389146,0.7569,1752.2,1751.4,1.09092753]
[1745363389449,0.7569,1752.2,1751.4,4.09092753]
[1745363389613,0.81697179,1752.2,1751.4,0.05707792]
[1745363390322,1.56536897,1752.2,1751.4,0.05707792]
[1745363390743,0.7758,1751.6,1750.4,0.6361]
[1745363390924,0.7758,1751.4,1750.4,0.6361]
[1745363391987,0.7758,1751.4,1750.4,4.07163708]
[1745363392165,0.7758,1751.4,1750.5,0.02560826]
[1745363392776,1.52711775,1751.4,1750.4,1.07163708]
[1745363392927,0.7758,1751.2,1750.4,1.07163708]
[1745363393133,0.7758,1751.2,1750.4,4.07163708]
[1745363394573,0.7758,1751.2,1750.5,0.02561828]
[1745363396365,0.7758,1751.2,1750.7,3.0]
[1745363396863,0.7758,1751.2,1750.8,0.02560595]
[1745363397065,0.7758,1751.2,1750.9,3.0]
[1745363397256,0.7758,1751.2,1751.0,0.02560605]
[1745363398064,0.7758,1751.2,1750.9,3.0]
[1745363398232,0.7758,1751.2,1750.9,3.42924121]
[1745363399677,0.7758,1751.2,1751.0,0.025587]
[1745363400279,0.7758,1751.2,1750.9,3.42924121]
[1745363400645,0.7758,1751.2,1751.0,0.02560481]
[1745363401086,0.7758,1751.2,1750.9,3.42924121]
[1745363401502,0.7758,1751.2,1751.0,0.02560446]
[1745363402483,6.666,1751.5,1751.1,10.76317228]
[1745363402653,6.666,1751.5,1751.2,0.02556732]
[1745363402851,6.666,1751.5,1751.4,3.0]
[1745363403175,6.666,1751.5,1751.4,3.02556737]
[1745363403374,6.666,1751.5,1751.4,3.0]
[1745363403572,6.666,1751.5,1751.4,3.42778674]
[1745363404091,6.575,1751.9,1751.5,4.407335]
[1745363404296,6.575,1751.9,1751.7,3.0]
[1745363405361,6.575,1751.9,1751.7,3.02554676]
[1745363406792,6.575,1751.9,1751.7,3.0]
[1745363406998,6.575,1751.9,1751.7,3.02554682]
[1745363407681,6.575,1751.9,1751.7,3.0]
[1745363407881,6.575,1751.9,1751.7,3.0255469]
[1745363408778,6.575,1751.9,1751.7,3.0]
[1745363411398,6.575,1751.9,1751.6,3.6361]
[1745363411969,6.575,1751.9,1751.6,5.3743025]
[1745363412170,6.575,1751.9,1751.6,3.6361]
[1745363412367,6.573,1752.4,1751.8,3.0]
[1745363412569,2.08120618,1753.2,1752.2,1.7120535]
[1745363412570,8.623,1752.8,1752.2,1.7120535]
[1745363412899,8.623,1752.8,1752.5,0.6361]
[1745363413086,18.815,1753.1,1752.7,4.71160331]
[1745363413269,18.815,1753.1,1752.7,9.05]
[1745363414398,18.815,1753.1,1752.8,0.02545081]
[1745363414703,18.815,1753.1,1752.8,0.02544474]
[1745363415174,18.815,1753.1,1752.7,9.05]
[1745363415495,18.815,1753.1,1752.7,9.46868299]
[1745363415878,18.815,1753.1,1752.7,9.69728406]
[1745363416074,18.815,1753.1,1752.8,0.02544486]
[1745363416267,6.573,1753.2,1752.9,4.71141029]
[1745363416467,6.573,1753.2,1753.0,0.02543311]
[1745363417079,6.55727723,1753.2,1753.0,0.02543311]
[1745363418304,6.57,1753.6,1753.3,3.0]
[1745363418465,6.57,1753.6,1753.4,0.66149753]
[1745363418466,5.7781,1753.6,1753.4,0.66149753]
[1745363418671,5.7781,1753.6,1753.4,2.372452]
[1745363419187,5.7781,1753.6,1753.4,0.66149753]
[1745363419505,5.7781,1753.6,1753.4,5.37245613]
[1745363419799,5.7781,1753.6,1753.4,6.3424586]
[1745363420168,5.7781,1753.6,1753.4,12.3924586]
[1745363420584,3.4731,1753.6,1753.4,12.3924586]
[1745363421402,3.4731,1753.6,1753.4,14.1034172]
[1745363421607,3.4731,1753.6,1753.4,12.36706107]
[1745363421804,3.4731,1753.6,1753.4,10.65610247]
[1745363422011,3.4731,1753.6,1753.4,9.05]
[1745363422181,3.4731,1753.6,1753.4,9.48003342]
[1745363422386,3.4731,1753.6,1753.4,9.50543122]
[1745363422686,3.4731,1753.6,1753.4,11.21635069]
[1745363423304,2.64790001,1753.6,1753.4,11.21635069]
[1745363423507,2.64790001,1753.6,1753.5,4.71086398]
[1745363423707,6.569,1754.0,1753.8,1.71052374]
[1745363423874,0.7862,1754.2,1753.9,3.02536389]
[1745363424202,0.1174473,1754.6,1754.1,3.0]
[1745363424203,0.0461905,1754.6,1754.1,3.0]
[1745363424421,0.8323905,1754.6,1754.1,9.05]
[1745363425182,0.8323905,1754.6,1754.2,0.02533614]
[1745363425585,0.0461905,1754.6,1754.4,1.70992557]
[1745363425792,0.25,1755.0,1754.6,5.34582707]
[1745363426004,0.25,1755.0,1754.8,1.70959653]
[1745363426206,0.25,1755.0,1754.9,4.73477095]
[1745363426406,6.567,1755.3,1755.0,4.70934909]
[1745363426605,6.567,1755.3,1755.1,4.73452571]
[1745363426816,6.567,1755.3,1755.1,3.0252634]
[1745363427015,6.567,1755.3,1755.1,4.7345289]
[1745363427522,5.2747,1755.3,1755.2,1.70920692]
[1745363427681,5.2747,1755.3,1755.1,4.73449288]
[1745363428187,2.6229,1755.3,1755.1,3.0252634]
[1745363428521,2.6229,1755.3,1755.1,4.73451488]
[1745363428750,6.566,1755.7,1755.1,4.73449754]
[1745363429036,6.566,1755.7,1755.1,11.75450001]
[1745363429238,6.566,1755.7,1755.4,4.7089726]
[1745363429426,26.1234,1756.1,1755.5,2.37021391]
[1745363429632,26.1234,1756.1,1755.6,3.0]
[1745363429813,25.359,1756.1,1755.7,0.02521395]
[1745363430206,6.9714657,1756.4,1755.7,0.02521395]
[1745363430511,0.4084657,1756.4,1756.1,1.70828784]
[1745363430712,1.17677258,1756.4,1755.7,0.6361]
[1745363430922,0.7644,1756.3,1755.2,0.6361]
[1745363431217,0.83558781,1756.2,1755.2,5.34522476]
[1745363431435,0.7644,1756.2,1755.4,1.70894612]
[1745363431622,0.24191444,1756.1,1755.5,0.0252057]
[1745363431807,6.443,1756.0,1755.6,1.70877083]
[1745363432008,6.443,1756.0,1755.7,0.02521759]
[1745363432243,0.26579004,1755.9,1755.7,0.02521759]
[1745363432541,0.26579004,1755.9,1755.5,4.7088764]
[1745363432713,0.26579004,1755.9,1755.6,4.70872944]
[1745363432917,0.26579004,1755.9,1755.7,0.02521338]
[1745363433344,0.26579004,1755.9,1755.4,1.708964]
[1745363433551,0.26579004,1755.9,1755.8,1.70862284]
[1745363433751,0.23031064,1755.9,1755.8,1.70862284]
[1745363433912,0.4084657,1756.4,1755.9,1.70847054]
[1745363434105,0.23263843,1756.3,1755.8,3.0]
[1745363434333,0.23263843,1756.4,1756.3,4.70813642]
[1745363434546,0.23263843,1756.4,1756.1,0.6361]
[1745363435347,0.23263843,1756.4,1756.1,1.06384886]
[1745363435704,0.23263843,1756.4,1756.2,0.02516707]
[1745363435909,0.23263843,1756.4,1756.1,2.77213035]
[1745363436110,0.23263843,1756.4,1756.3,1.70813642]
[1745363436313,0.23263843,1756.4,1756.3,0.02516223]
[1745363436555,0.23263843,1756.4,1756.2,1.70816357]
[1745363436556,0.23263843,1756.4,1756.1,0.42774886]
[1745363436763,0.7644,1756.3,1756.1,0.42774886]
[1745363436923,0.23263843,1756.4,1756.2,0.02517629]
[1745363437465,0.23263843,1756.4,1756.1,0.42668258]
[1745363437952,0.23263843,1756.4,1756.0,2.34448021]
[1745363438473,0.23263843,1756.4,1755.6,7.75876014]
[1745363438474,0.7644,1756.3,1755.6,7.75876014]
[1745363438761,0.7644,1756.3,1755.3,7.75904888]
[1745363438915,0.7644,1756.1,1755.4,4.70897125]
[1745363439119,6.438,1756.0,1755.4,4.70897125]
[1745363439321,6.438,1756.0,1755.5,0.02521615]
[1745363439514,6.438,1756.0,1755.4,5.03981923]
[1745363439754,6.438,1756.0,1755.5,3.02520658]
[1745363439958,1.66440227,1756.4,1755.6,0.6361]
[1745363440126,1.0682152,1756.4,1755.7,0.02520382]
[1745363440327,1.0682152,1756.4,1755.4,0.42622601]
[1745363440328,0.7644,1756.3,1755.4,0.42622601]
[1745363440529,0.7644,1756.1,1755.4,0.42622601]
[1745363440714,0.7644,1755.9,1755.1,0.6361]
[1745363440910,0.7644,1755.9,1755.0,0.22694263]
[1745363441134,0.83559302,1755.9,1755.1,0.02523634]
[1745363441326,0.18283389,1755.8,1755.1,1.70923939]
[1745363441847,0.18283389,1755.8,1755.1,3.0]
[1745363442050,0.7845,1755.7,1755.1,0.02524535]
[1745363442428,0.85570363,1755.7,1755.1,0.02524535]
[1745363442623,0.18184632,1755.6,1755.0,25.66644819]
[1745363442960,0.7845,1755.4,1755.1,3.0]
[1745363443138,0.17818947,1755.3,1755.1,0.02526138]
[1745363443339,0.17818947,1755.3,1755.1,3.02526138]
[1745363443536,0.17818947,1755.3,1755.1,0.02526138]
[1745363443851,0.17818947,1755.3,1755.1,3.02526138]
[1745363444621,6.438,1755.9,1755.5,1.70891472]
[1745363444922,0.12948659,1755.8,1755.6,9.07521505]
[1745363445250,6.438,1756.3,1755.8,1.70857364]
[1745363445456,6.438,1756.3,1755.9,0.02518855]
[1745363445625,0.13146105,1756.2,1755.9,0.02518855]
[1745363445947,6.438,1756.3,1755.9,0.02518855]
[1745363446351,6.438,1756.3,1755.8,0.4224307]
[1745363446668,7.18351384,1756.3,1755.7,3.0]
[1745363446956,0.13146105,1756.2,1755.7,3.0]
[1745363447833,0.7845,1756.1,1755.7,3.0]
[1745363448031,0.7845,1756.1,1755.8,0.02521365]
[1745363448228,0.13047393,1756.0,1755.8,0.02521365]
[1745363448852,0.13047393,1756.0,1755.7,3.42762353]
[1745363449621,0.13047393,1756.0,1755.7,0.42762353]
[1745363449854,0.13047393,1756.0,1755.5,3.0]
[1745363450057,0.13047393,1756.0,1755.5,3.42911603]
[1745363450263,0.13047393,1756.0,1755.6,0.02521399]
[1745363450632,0.13047393,1756.0,1755.3,3.6361]
[1745363450633,0.13047393,1756.0,1755.4,1.73422441]
[1745363450957,0.13047393,1756.0,1755.6,1.70877234]
[1745363451172,0.13047393,1756.0,1755.6,1.70874879]
[1745363451356,1e-08,1756.0,1755.7,0.66129781]
[1745363451672,6.438,1756.3,1755.7,0.6361]
[1745363451838,0.12240071,1755.9,1755.6,3.0]
[1745363452035,6.438,1756.3,1755.7,1.73391315]
[1745363452261,6.438,1756.3,1755.8,1.70856892]
[1745363452543,0.12388147,1756.2,1755.6,3.0]
[1745363452943,0.12388147,1756.2,1755.6,4.7087735]
[1745363453146,0.12388147,1756.2,1755.7,0.02519884]
[1745363454051,0.7845,1756.1,1755.7,0.02519385]
[1745363454454,0.12289436,1756.0,1755.7,0.02519385]
[1745363457675,0.12289436,1756.0,1755.7,6.07519385]
[1745363459787,0.12289436,1756.0,1755.8,3.0]
[1745363460236,0.12289436,1756.0,1755.7,6.05]
[1745363460442,0.7818,1755.9,1755.5,0.42237844]
[1745363460743,0.23263843,1756.4,1756.3,14.25741042]
[1745363460940,0.7818,1757.2,1756.3,14.25741042]
[1745363460941,6.437,1757.1,1756.3,0.81941913]
[1745363461181,0.7818,1756.9,1756.3,0.42320069]
[1745363461475,0.7818,1756.7,1755.5,4.45551913]
[1745363461689,0.7818,1756.3,1755.1,0.6361]
[1745363461842,0.7818,1756.3,1754.8,1.67953431]
[1745363461843,0.55,1756.1,1754.8,0.6361]
[1745363462038,0.7818,1755.8,1755.2,0.31685105]
[1745363462237,0.7818,1755.8,1755.3,0.05696056]
[1745363462634,0.7818,1755.8,1755.4,0.31685105]
[1745363463090,0.55,1755.7,1755.4,0.05695286]
[1745363463289,0.7818,1755.5,1755.4,0.05695286]
[1745363463440,7.3718,1755.5,1755.4,0.05695286]
[1745363466082,6.59,1755.5,1755.0,25.0]
[1745363466399,1.51202112,1755.4,1755.0,25.0]
[1745363467340,0.7818,1755.4,1755.1,0.03953228]
[1745363467546,0.7818,1755.4,1755.0,25.0]
[1745363467773,0.07121224,1755.3,1755.0,25.0]
[1745363468679,0.07121224,1755.3,1755.0,25.43377819]
[1745363468680,0.7818,1755.2,1755.0,25.43377819]
[1745363468879,0.07122586,1755.1,1755.0,25.43377819]
[1745363469172,0.7818,1755.2,1755.0,25.0]
[1745363469564,0.07122586,1755.1,1755.0,25.0]
[1745363469874,0.7818,1755.1,1755.0,25.0]
[1745363470083,1.39329949,1755.1,1755.0,25.0]
[1745363470688,1.32207021,1755.1,1755.0,25.0]
[1745363471002,0.7818,1755.1,1755.0,25.0]
[1745363471700,1.3318,1755.1,1755.0,24.1667]
[1745363471898,1.40303334,1755.1,1755.0,18.51811608]
[1745363472906,0.85303334,1755.1,1755.0,18.51811608]
[1745363473077,0.7818,1755.1,1755.0,18.51811608]
[1745363475172,1.32919301,1755.1,1755.0,18.51811608]
[1745363476268,0.7818,1755.1,1755.0,18.51811608]
[1745363477705,7.3883,1755.5,1755.0,21.51811608]
[1745363478112,7.3883,1755.5,1755.0,21.93551785]
[1745363478491,7.3883,1755.5,1755.1,0.03951308]
[1745363479107,6.59,1755.5,1755.2,0.31512583]
[1745363479607,6.59,1755.5,1755.3,0.03950556]
[1745363480011,6.59,1755.5,1755.4,0.31512583]
[1745363480877,6.593,1756.1,1755.5,0.79]
[1745363481083,6.593,1756.1,1755.6,3.03945814]
[1745363481277,6.593,1756.1,1755.6,5.31696147]
[1745363481474,6.593,1756.1,1755.7,0.31512583]
[1745363482711,6.593,1756.1,1755.8,0.31512583]
[1745363482882,0.0711801,1756.0,1755.8,0.31512583]
[1745363483081,7.2523,1756.1,1755.8,0.31512583]
[1745363483704,7.2523,1756.1,1755.9,0.31512583]
[1745363483705,6.593,1756.1,1755.9,0.31512583]
[1745363483904,6.593,1756.1,1755.9,0.74837823]
[1745363484487,6.593,1756.1,1756.0,0.31512583]
[1745363485410,6.593,1756.1,1755.7,0.31512583]
[1745363486823,6.593,1756.1,1755.8,0.03945949]
[1745363487022,6.593,1756.1,1755.8,0.45949257]
[1745363487219,6.593,1756.1,1755.9,0.31512583]
[1745363489045,6.593,1756.1,1755.7,0.31512583]
[1745363489214,6.593,1756.1,1755.8,0.03945574]
[1745363489547,6.593,1756.1,1755.8,0.47569314]
[1745363489730,6.593,1756.1,1755.8,0.4362374]
[1745363490048,7.2523,1756.1,1755.9,0.31512583]
[1745363490815,0.89448636,1756.0,1755.9,0.31512583]
[1745363491016,0.89448636,1756.0,1755.5,6.05]
[1745363491335,0.8233,1755.9,1755.0,18.51811608]
[1745363491528,0.0712042,1755.8,1755.1,0.31544034]
[1745363491845,18.8432042,1755.8,1755.1,3.31544034]
[1745363492054,1.88432042,1755.7,1755.1,0.31544034]
[1745363492262,6.54220828,1755.6,1755.1,0.75176752]
[1745363492411,6.54220828,1755.6,1755.2,0.35495306]
[1745363493036,6.54220828,1755.6,1755.3,0.31544034]
[1745363493230,6.471,1755.6,1755.3,0.31544034]
[1745363494218,6.471,1755.6,1755.4,0.03950305]
[1745363494419,6.471,1755.6,1755.4,0.84080305]
[1745363494621,5.94560321,1755.6,1755.5,3.0]
[1745363494952,5.13160321,1755.6,1755.5,3.31544034]
[1745363495954,5.13160321,1755.6,1755.5,0.31544034]
[1745363497553,5.13160321,1755.6,1755.5,3.31544034]
[1745363497763,4.08586658,1755.6,1755.5,3.35491905]
[1745363498056,6.471,1756.0,1755.5,11.0732]
[1745363498351,6.471,1756.0,1755.5,10.20621905]
[1745363498532,6.471,1756.0,1755.6,0.31544034]
[1745363498945,6.471,1756.0,1755.5,9.8513]
[1745363498946,6.471,1756.0,1755.7,0.31544034]
[1745363499820,6.471,1756.0,1755.8,0.31544034]
[1745363500021,6.471,1756.0,1755.5,9.8513]
[1745363500255,6.471,1756.0,1755.9,0.31532756]
[1745363501459,6.471,1756.0,1755.9,1.11662756]
[1745363501626,6.164,1756.0,1755.9,10.60314677]
[1745363501822,25.242,1756.6,1756.0,4.70838286]
[1745363502029,5.32942066,1756.6,1756.2,5.52904488]
[1745363502360,0.7727,1757.0,1756.4,3.0]
[1745363502361,6.47,1757.0,1756.4,3.0]
[1745363502658,0.7727,1756.8,1756.4,3.4234232]
[1745363502958,0.7727,1756.8,1756.5,0.31532756]
[1745363503360,0.7727,1756.8,1756.6,0.31532756]
[1745363503550,0.7727,1756.8,1756.5,0.31532756]
[1745363503749,6.47,1757.0,1756.5,0.31532756]
[1745363504060,6.47,1757.0,1756.6,0.31532756]
[1745363504227,6.47,1757.0,1756.6,0.03939524]
[1745363504428,6.04551225,1757.0,1756.7,0.31531927]
[1745363504861,0.37095201,1757.0,1756.8,0.03938049]
[1745363505173,0.37095201,1757.0,1756.9,0.31524123]
[1745363505375,0.5,1757.5,1757.1,0.8209]
[1745363505581,0.5,1757.5,1757.3,1.70712406]
[1745363505783,0.4084657,1758.1,1757.7,1.3709]
[1745363505930,0.30673589,1758.7,1758.0,8.44180208]
[1745363506132,0.01,1758.7,1758.1,3.0]
[1745363506439,0.01,1758.7,1758.1,3.31524123]
[1745363506643,0.72907158,1758.7,1758.1,0.73879911]
[1745363506842,0.72907158,1758.7,1758.2,0.31524123]
[1745363507045,0.7727,1758.5,1758.2,0.31524123]
[1745363507352,0.07109892,1758.4,1758.2,0.31524123]
[1745363507767,0.7727,1758.5,1758.1,0.42343004]
[1745363507974,0.7727,1758.5,1757.6,4.70681714]
[1745363507975,1.49697,1758.5,1757.6,4.70681714]
[1745363508170,1.49697,1758.5,1757.6,3.0]
[1745363508368,1.56805497,1758.5,1757.7,0.03927164]
[1745363508569,1.49697,1758.5,1757.7,0.03927164]
[1745363508775,1.49697,1758.5,1757.8,0.31323863]
[1745363509175,0.72427,1758.5,1757.9,0.8001662]
[1745363509372,0.72427,1758.5,1757.9,0.7609]
[1745363509586,0.72427,1758.5,1758.0,0.31323863]
[1745363510090,5.25123185,1758.3,1756.9,0.99645992]
[1745363510389,20.14934186,1758.2,1756.9,1.43314213]
[1745363510690,6.466,1758.1,1756.9,1.43314213]
[1745363510988,0.07111838,1758.0,1756.9,1.43314213]
[1745363511173,6.466,1758.1,1757.0,4.7467874]
[1745363511380,6.466,1758.1,1757.2,1.70718747]
[1745363511577,6.466,1758.1,1757.3,0.80021416]
[1745363511781,9.06791,1758.1,1757.3,0.7609]
[1745363512657,0.07109913,1758.0,1757.2,3.0]
[1745363513069,0.07109913,1758.0,1757.3,0.03932645]
[1745363513274,0.07109913,1758.0,1757.3,0.03932646]
[1745363513869,0.07109913,1758.0,1757.0,29.27901608]
[1745363514078,0.98500004,1758.0,1757.1,3.03932654]
[1745363514473,0.91390091,1758.0,1757.1,4.70735815]
[1745363514661,0.07110836,1757.9,1757.1,3.0]
[1745363515765,0.7921,1757.8,1757.0,29.27901608]
[1745363515977,0.07112137,1757.7,1757.1,3.0]
[1745363516177,6.727,1757.6,1757.1,3.0]
[1745363516784,6.727,1757.6,1757.2,0.03933893]
[1745363517158,6.727,1757.6,1757.1,3.0]
[1745363519017,6.727,1757.6,1757.0,29.27901608]
[1745363519165,7.3997,1757.6,1757.0,28.51811608]
[1745363519496,6.727,1757.6,1757.1,0.03934107]
[1745363519682,6.727,1757.6,1757.1,3.03934107]
[1745363520064,6.727,1757.6,1757.1,3.0]
[1745363520464,6.727,1757.6,1757.2,0.03933209]
[1745363520675,6.727,1757.6,1757.2,0.7507]
[1745363521302,6.727,1757.6,1757.2,1.74658361]
[1745363521485,6.727,1757.6,1757.2,0.03932527]
[1745363521675,6.727,1758.0,1757.3,2.45782045]
[1745363521878,6.727,1758.0,1757.7,1.70676751]
[1745363522075,0.4255494,1758.7,1757.9,0.7507]
[1745363522076,0.01,1758.7,1757.9,0.7507]
[1745363522383,0.01,1758.7,1758.0,3.1040143]
[1745363522593,0.01,1758.7,1758.1,0.31101543]
[1745363522825,6.726,1758.6,1758.1,0.31101543]
[1745363523141,0.8183,1758.5,1758.2,0.03925146]
[1745363523444,6.726,1758.6,1758.2,0.4747411]
[1745363523627,6.726,1758.6,1758.2,0.10400247]
[1745363524351,6.726,1758.6,1758.2,1.81024627]
[1745363524647,6.88444086,1758.9,1758.3,5.76796132]
[1745363524821,6.88444086,1758.9,1758.4,0.10399064]
[1745363525012,6.88444086,1758.9,1758.6,3.0]
[1745363525519,7.65471495,1758.9,1758.6,3.0]
[1745363525717,7.65471495,1758.9,1758.5,6.05]
[1745363525918,1.2317657,1759.9,1759.0,8.473014]
[1745363526240,1.2317657,1759.9,1759.1,1.20482973]
[1745363526404,1.2317657,1759.9,1759.2,0.14309069]
[1745363526405,7.9557657,1759.9,1759.2,0.14309069]
[1745363526741,7.1374657,1759.9,1759.3,0.10393744]
[1745363527034,7.93304227,1759.9,1759.3,0.52195807]
[1745363527245,7.93304227,1759.9,1759.3,0.10393744]
[1745363527449,1.20904227,1759.9,1759.3,0.10393744]
[1745363527752,6.724,1759.8,1759.3,0.10393744]
[1745363527917,0.07102948,1759.8,1759.3,0.10393744]
[1745363528122,6.724,1759.7,1759.3,0.52783049]
[1745363528319,6.724,1759.7,1759.3,0.10393744]
[1745363528947,6.724,1759.7,1759.4,0.31074294]
[1745363529240,0.8183,1759.5,1759.4,0.31074294]
[1745363529614,0.8183,1759.5,1758.8,0.7507]
[1745363529948,0.8183,1759.5,1758.9,0.03918673]
[1745363530136,0.8893453,1759.5,1758.8,0.52458262]
[1745363530554,0.8893453,1759.5,1759.0,28.51811608]
[1745363530929,6.57292113,1759.5,1759.0,28.51811608]
[1745363531129,4.48419101,1759.1,1759.0,10.00384534]
[1745363531368,29.95019101,1759.1,1758.9,0.3114809]
[1745363531572,0.88938557,1759.0,1758.2,0.42695764]
[1745363531865,0.88938557,1759.0,1757.8,0.7507]
[1745363532162,0.88938557,1759.0,1757.9,0.0392693]
[1745363532334,0.88938557,1759.0,1758.0,0.31275222]
[1745363532871,0.88938557,1759.0,1758.0,0.72889865]
[1745363533035,0.88938557,1759.0,1758.0,0.31275222]
[1745363533237,0.88938557,1759.0,1758.1,0.31275222]
[1745363533875,3.52492413,1759.0,1758.1,0.31275222]
[1745363534169,3.52492413,1759.0,1758.0,0.31275222]
[1745363534381,3.52492413,1759.0,1758.1,0.14325934]
[1745363534534,3.52492413,1759.0,1758.0,0.31275222]
[1745363534535,3.52492413,1759.0,1758.2,0.1432422]
[1745363534733,3.52492413,1759.0,1758.3,0.31275222]
[1745363534966,0.35249241,1758.9,1758.3,0.31275222]
[1745363535169,0.07107991,1758.8,1758.3,0.31275222]
[1745363535693,0.7583,1758.7,1758.3,0.31275222]
[1745363535859,6.79309961,1758.6,1758.3,0.31275222]
[1745363536060,6.79309961,1758.6,1757.6,0.35203798]
[1745363536259,0.67930996,1758.5,1757.6,6.40203798]
[1745363536455,0.07110014,1758.4,1757.7,3.0]
[1745363536790,0.7583,1758.3,1757.8,0.31275222]
[1745363536951,0.7583,1758.3,1757.9,0.03930248]
[1745363537343,0.7583,1758.3,1757.8,0.31275222]
[1745363537559,0.7583,1758.3,1757.9,0.31275222]
[1745363537921,18.81409418,1758.2,1757.9,0.31275222]
[1745363538104,25.62125604,1758.9,1757.9,0.31275222]
[1745363538304,6.723,1758.5,1757.9,0.31275222]
[1745363538504,0.7583,1758.3,1757.9,0.31275222]
[1745363538706,0.07110016,1758.2,1757.9,0.31275222]
[1745363539103,0.07110016,1758.2,1757.5,0.31275222]
[1745363539305,0.07110016,1758.2,1757.5,3.31275222]
[1745363539689,0.07110016,1758.2,1757.5,0.35207109]
[1745363539997,0.07110016,1758.2,1757.6,0.31275222]